bitfinex/quotes_BTCUSD_20211001
["timestamp","ask_amount","ask_price","bid_price","bid_amount"]
[1633117521277,0.0008,47936.0,47921.0,1.06046445]
[1633117521278,0.0004,47940.0,47925.0,0.0004]
[1633117521483,0.9632,47945.0,47941.0,2.0]
[1633117521484,0.0006,47945.0,47941.0,2.0]
[1633117521677,0.0006,47945.0,47941.0,0.49293886]
[1633117521877,0.0006,47945.0,47941.0,0.65706078]
[1633117522077,0.0006,47945.0,47941.0,0.65682877]
[1633117522280,0.0006,47945.0,47941.0,0.48992136]
[1633117522577,0.0006,47945.0,47940.0,0.00123988]
[1633117522977,0.0006,47945.0,47930.0,0.003125]
[1633117522978,0.2235695,47941.0,47933.0,0.17966428]
[1633117523182,0.0003695,47941.0,47930.0,0.003125]
[1633117523379,0.00125251,47944.0,47930.0,2.4536551]
[1633117523577,0.00125251,47944.0,47929.0,0.1802905]
[1633117523778,0.11122693,47939.0,47931.0,0.23427029]
[1633117524044,0.11122693,47939.0,47932.0,0.16339229]
[1633117524681,0.00123895,47936.0,47930.0,0.026]
[1633117525276,0.00123895,47936.0,47934.0,0.00060416]
[1633117525480,0.163365,47935.0,47934.0,0.00060416]
[1633117525681,0.00123895,47936.0,47934.0,0.00060416]
[1633117525877,0.0035313,47935.0,47934.0,0.03260416]
[1633117526476,0.7900963,47935.0,47934.0,0.03260416]
[1633117526680,0.79133492,47935.0,47934.0,0.03260416]
[1633117526880,1.86520832,47933.0,47932.0,6e-05]
[1633117527077,0.22982131,47933.0,47932.0,6e-05]
[1633117527476,0.45302131,47933.0,47932.0,6e-05]
[1633117527876,0.45302131,47933.0,47932.0,0.02506]
[1633117529078,0.45302131,47933.0,47932.0,6e-05]
[1633117529876,0.48202131,47933.0,47932.0,0.01106]
[1633117530081,0.25882131,47933.0,47932.0,0.01106]
[1633117530886,0.25757332,47933.0,47932.0,0.01106]
[1633117531278,0.22857332,47933.0,47932.0,6e-05]
[1633117531477,0.2321048,47933.0,47932.0,6e-05]
[1633117531678,0.2321048,47933.0,47932.0,0.0349164]
[1633117531878,0.2591048,47933.0,47932.0,0.0439164]
[1633117532080,0.2541048,47933.0,47932.0,0.0439164]
[1633117532279,0.67452904,47933.0,47932.0,0.0439164]
[1633117533483,0.67452904,47933.0,47932.0,0.0339164]
[1633117533678,0.64752904,47933.0,47932.0,0.0249164]
[1633117533879,0.90272904,47933.0,47932.0,0.0369164]
[1633117534080,0.67952904,47933.0,47932.0,0.0369164]
[1633117535083,0.64752904,47933.0,47932.0,0.0249164]
[1633117535686,0.96451819,47933.0,47925.0,0.0004]
[1633117535886,2.45122653,47926.0,47925.0,0.0004]
[1633117536090,2.93449153,47926.0,47925.0,0.0004]
[1633117536285,2.93449153,47926.0,47925.0,0.00048347]
[1633117536487,3.24407929,47926.0,47925.0,0.00048347]
[1633117536685,3.46727929,47926.0,47925.0,0.00048347]
[1633117536888,0.90709929,47926.0,47925.0,0.00048347]
[1633117537084,0.80750465,47926.0,47925.0,0.00048347]
[1633117537285,0.49448465,47926.0,47925.0,0.01794297]
[1633117537685,0.71768465,47926.0,47925.0,0.01794297]
[1633117537887,0.87244026,47926.0,47925.0,0.01794297]
[1633117538086,1.07244026,47926.0,47925.0,0.01794297]
[1633117538487,0.87244026,47926.0,47925.0,0.01794297]
[1633117538692,1.07244026,47926.0,47925.0,0.01794297]
[1633117539148,1.04144026,47926.0,47925.0,0.01794297]
[1633117539947,1.07244026,47926.0,47925.0,0.01794297]
[1633117541355,1.04144026,47926.0,47925.0,0.01794297]
[1633117541950,1.07244026,47926.0,47925.0,0.01794297]
[1633117542550,0.94868465,47926.0,47925.0,0.00048347]
[1633117542752,0.72837929,47926.0,47925.0,0.00048347]
[1633117543351,0.69737929,47926.0,47925.0,0.00048347]
[1633117543954,0.92837929,47926.0,47925.0,0.00048347]
[1633117544553,0.72837929,47926.0,47925.0,0.00048347]
[1633117544951,0.41879153,47926.0,47925.0,0.00048347]
[1633117545753,0.38779153,47926.0,47925.0,0.00048347]
[1633117545953,0.61879153,47926.0,47925.0,0.00048347]
[1633117546755,0.92597613,47926.0,47925.0,0.00048347]
[1633117547357,0.67177613,47926.0,47925.0,0.00048347]
[1633117547957,0.71931852,47926.0,47925.0,0.00048347]
[1633117548358,0.84413994,47926.0,47925.0,0.01794297]
[1633117549360,0.81313994,47926.0,47925.0,0.01794297]
[1633117549961,0.84413994,47926.0,47925.0,0.01794297]
[1633117550165,1.06733994,47926.0,47925.0,0.01794297]
[1633117551165,1.03633994,47926.0,47925.0,0.01794297]
[1633117551963,1.06733994,47926.0,47925.0,0.01794297]
[1633117553166,0.81313994,47926.0,47925.0,0.00048347]
[1633117553367,0.68831852,47926.0,47925.0,0.00048347]
[1633117553766,0.66801302,47926.0,47925.0,0.01794297]
[1633117553966,0.69901302,47926.0,47925.0,0.01794297]
[1633117554566,0.81351079,47926.0,47925.0,0.01794297]
[1633117555367,0.78251079,47926.0,47925.0,0.01794297]
[1633117555770,0.47532619,47926.0,47925.0,0.01794297]
[1633117555967,0.50632619,47926.0,47925.0,0.01794297]
[1633117556173,0.19182842,47926.0,47925.0,0.01794297]
[1633117556473,0.19059153,47926.0,47925.0,0.01794297]
[1633117556875,0.19059153,47926.0,47925.0,0.01847307]
[1633117557068,0.03039508,47926.0,47925.0,0.18793433]
[1633117557270,0.208679,47928.0,47925.0,0.18793433]
[1633117557473,0.312915,47932.0,47925.0,0.18793433]
[1633117557671,0.312915,47932.0,47926.0,0.0005301]
[1633117557870,0.034,47928.0,47926.0,0.0005301]
[1633117558471,0.159583,47927.0,47926.0,0.0005301]
[1633117558671,0.159583,47927.0,47925.0,0.03294297]
[1633117558871,0.17989416,47927.0,47926.0,7.155e-05]
[1633117559272,0.17989416,47927.0,47926.0,0.01752882]
[1633117559273,0.159583,47927.0,47926.0,0.01752882]
[1633117559872,0.194583,47927.0,47926.0,0.01752882]
[1633117561371,0.159583,47927.0,47926.0,0.01752882]
[1633117561969,0.194583,47927.0,47926.0,0.01973594]
[1633117562381,0.204583,47927.0,47926.0,0.01973594]
[1633117563376,0.169583,47927.0,47926.0,0.01573594]
[1633117563973,0.204583,47927.0,47926.0,0.01973594]
[1633117564170,0.204583,47927.0,47926.0,0.16049577]
[1633117564371,0.22575305,47927.0,47926.0,0.004]
[1633117564775,0.204583,47927.0,47926.0,0.01659437]
[1633117565171,0.169583,47927.0,47926.0,0.01659437]
[1633117565774,0.01,47927.0,47926.0,0.01659437]
[1633117565973,0.044,47927.0,47926.0,0.02559437]
[1633117566175,0.044,47927.0,47926.0,0.185741]
[1633117567380,0.169583,47927.0,47926.0,0.01659437]
[1633117567973,0.204583,47927.0,47926.0,0.01759437]
[1633117568776,0.30000723,47927.0,47926.0,0.01759437]
[1633117569179,0.30124813,47927.0,47926.0,0.01759437]
[1633117569377,0.169583,47927.0,47926.0,0.01659437]
[1633117569775,0.169583,47927.0,47925.0,0.0004]
[1633117569980,1.86296,47926.0,47925.0,0.0004]
[1633117570179,0.472543,47926.0,47925.0,0.0004]
[1633117572044,0.506543,47926.0,47925.0,0.0004]
[1633117573785,0.472543,47926.0,47925.0,0.0004]
[1633117573982,0.507543,47926.0,47925.0,0.0004]
[1633117575187,0.472543,47926.0,47925.0,0.0004]
[1633117575381,0.4937095,47926.0,47925.0,0.0004]
[1633117575783,0.472543,47926.0,47925.0,0.01699884]
[1633117575981,0.507543,47926.0,47925.0,0.01699884]
[1633117577382,0.472543,47926.0,47925.0,0.01699884]
[1633117577581,0.159583,47926.0,47925.0,0.01699884]
[1633117577980,0.192583,47926.0,47925.0,0.01699884]
[1633117579386,0.159583,47926.0,47925.0,0.01699884]
[1633117579584,0.359583,47926.0,47925.0,0.01699884]
[1633117579785,0.36082448,47926.0,47925.0,0.01699884]
[1633117579985,0.39282448,47926.0,47925.0,0.01699884]
[1633117580785,0.41399105,47926.0,47925.0,0.0004]
[1633117581184,0.38261965,47926.0,47925.0,0.0004]
[1633117581385,0.38261965,47926.0,47925.0,0.01699884]
[1633117581784,0.48485929,47926.0,47925.0,0.01699884]
[1633117581985,0.51585929,47926.0,47925.0,0.01699884]
[1633117582185,0.48385929,47926.0,47925.0,0.01699884]
[1633117583585,0.45285929,47926.0,47925.0,0.01699884]
[1633117583984,0.48485929,47926.0,47925.0,0.01699884]
[1633117585388,0.45285929,47926.0,47925.0,0.01699884]
[1633117585984,0.48385929,47926.0,47925.0,0.01699884]
[1633117586184,0.48385929,47926.0,47925.0,0.0004]
[1633117586387,0.40278629,47926.0,47925.0,0.0004]
[1633117586787,0.60481965,47926.0,47925.0,0.01699884]
[1633117587188,0.38161965,47926.0,47925.0,0.01699884]
[1633117587587,0.35061965,47926.0,47925.0,0.01699884]
[1633117587787,0.47466476,47926.0,47925.0,0.01699884]
[1633117587985,0.50566476,47926.0,47925.0,0.01699884]
[1633117589387,0.47466476,47926.0,47925.0,0.01699884]
[1633117589985,0.50566476,47926.0,47925.0,0.01699884]
[1633117591390,0.50066476,47926.0,47925.0,0.01699884]
[1633117591792,0.39778636,47926.0,47925.0,0.0004]
[1633117591997,0.42878636,47926.0,47925.0,0.0004]
[1633117592194,0.39778636,47926.0,47925.0,0.0004]
[1633117592394,0.37661965,47926.0,47925.0,0.01699884]
[1633117592992,0.49555885,47926.0,47925.0,0.01699884]
[1633117593399,0.46455885,47926.0,47925.0,0.01699884]
[1633117593996,0.49555885,47926.0,47925.0,0.01699884]
[1633117595397,0.46455885,47926.0,47925.0,0.01699884]
[1633117596060,0.49555885,47926.0,47925.0,0.01699884]
[1633117597204,0.49555885,47926.0,47925.0,0.0004]
[1633117597400,0.36678642,47926.0,47925.0,0.0004]
[1633117597799,0.34561965,47926.0,47925.0,0.01699884]
[1633117597999,0.37661965,47926.0,47925.0,0.01699884]
[1633117598199,0.37661965,47926.0,47925.0,0.01599884]
[1633117598605,0.49529647,47926.0,47925.0,0.01599884]
[1633117599403,0.46429647,47926.0,47925.0,0.01599884]
[1633117600001,0.49529647,47926.0,47925.0,0.01599884]
[1633117600206,1.4,47925.0,47912.0,0.40021239]
[1633117600405,0.208654,47920.0,47912.0,0.46972479]
[1633117600805,0.208654,47920.0,47919.0,8.347e-05]
[1633117601005,0.353032,47920.0,47919.0,8.347e-05]
[1633117602064,0.388032,47920.0,47919.0,8.347e-05]
[1633117602806,0.41747615,47920.0,47919.0,8.347e-05]
[1633117603007,0.38247615,47920.0,47919.0,8.347e-05]
[1633117603206,0.353032,47920.0,47919.0,0.00840973]
[1633117604013,0.388032,47920.0,47919.0,0.00840973]
[1633117605413,0.353032,47920.0,47919.0,0.00840973]
[1633117606013,0.387032,47920.0,47919.0,0.00840973]
[1633117607616,0.353032,47920.0,47919.0,0.00840973]
[1633117608077,0.389032,47920.0,47919.0,0.00840973]
[1633117608221,0.41847622,47920.0,47919.0,8.347e-05]
[1633117608820,0.389032,47920.0,47919.0,0.00840973]
[1633117609424,0.41730769,47921.0,47919.0,0.00840973]
[1633117609823,0.41730769,47921.0,47920.0,7.154e-05]
[1633117610024,0.56168569,47921.0,47920.0,7.154e-05]
[1633117610223,0.59968569,47921.0,47920.0,7.154e-05]
[1633117611629,0.56168569,47921.0,47920.0,7.154e-05]
[1633117612224,0.59868569,47921.0,47920.0,7.154e-05]
[1633117613426,0.56168569,47921.0,47920.0,7.154e-05]
[1633117613830,0.59113366,47921.0,47920.0,7.154e-05]
[1633117614230,0.59868569,47921.0,47920.0,0.00839333]
[1633117615029,0.65213569,47921.0,47920.0,0.00839333]
[1633117615632,0.47075769,47921.0,47920.0,0.00839333]
[1633117616034,0.47075769,47921.0,47920.0,0.01739333]
[1633117616035,0.50275769,47921.0,47920.0,0.01739333]
[1633117616432,1.07033569,47921.0,47914.0,0.06894231]
[1633117616642,0.17841118,47910.0,47905.0,0.19709673]
[1633117616941,0.19434767,47900.0,47890.0,0.1664]
[1633117617138,0.0656955,47898.0,47881.0,0.61280066]
[1633117617337,0.00125725,47889.0,47881.0,0.2499]
[1633117617537,0.48062407,47885.0,47881.0,0.2499]
[1633117617736,0.40737427,47884.0,47881.0,0.2499]
[1633117617933,0.2232,47883.0,47881.0,0.2499]
[1633117618137,0.39274241,47882.0,47881.0,0.2729]
[1633117618336,2.54395464,47882.0,47881.0,0.2729]
[1633117618538,2.54395464,47882.0,47875.0,0.0004]
[1633117618539,0.144378,47878.0,47875.0,0.0004]
[1633117618736,0.14559329,47876.0,47875.0,0.0004]
[1633117618935,0.19904329,47876.0,47875.0,0.24606053]
[1633117619136,0.05345,47876.0,47875.0,0.24606053]
[1633117619338,0.08689293,47876.0,47875.0,0.0004]
[1633117619735,0.05345,47876.0,47875.0,0.0047624]
[1633117620132,0.38766789,47876.0,47875.0,0.0047624]
[1633117620335,0.180378,47876.0,47875.0,0.0047624]
[1633117620737,0.036,47876.0,47875.0,0.00603419]
[1633117620938,0.036,47876.0,47875.0,0.22095719]
[1633117621139,0.036,47876.0,47875.0,1.47974329]
[1633117621337,0.00127998,47888.0,47875.0,2.07598229]
[1633117621536,2.7756,47899.0,47887.0,0.00129717]
[1633117621740,0.19313673,47900.0,47888.0,0.15622702]
[1633117621935,0.19313673,47900.0,47890.0,0.10041474]
[1633117622141,0.19313673,47900.0,47899.0,0.00025053]
[1633117622336,0.33751473,47900.0,47899.0,0.00019053]
[1633117623336,0.34751473,47900.0,47899.0,0.00019053]
[1633117624136,0.37951473,47900.0,47899.0,0.00019053]
[1633117624936,0.4130463,47900.0,47899.0,0.00019053]
[1633117625437,0.34751473,47900.0,47899.0,0.00448015]
[1633117626238,0.37951473,47900.0,47899.0,0.00448015]
[1633117627040,0.144378,47899.0,47895.0,0.17491444]
[1633117627245,0.23513673,47900.0,47895.0,0.17491444]
[1633117627644,0.23513673,47900.0,47884.0,0.00129303]
[1633117627645,0.344378,47899.0,47884.0,0.00129303]
[1633117627841,0.313173,47896.0,47884.0,0.00129303]
[1633117628041,0.513173,47896.0,47884.0,0.00129303]
[1633117628441,0.144378,47895.0,47884.0,0.00129303]
[1633117628640,0.20879356,47894.0,47884.0,0.00129303]
[1633117629038,0.52197556,47894.0,47893.0,7.159e-05]
[1633117629240,0.66635356,47894.0,47893.0,7.159e-05]
[1633117629441,1.09079257,47894.0,47893.0,7.159e-05]
[1633117630241,1.15944688,47894.0,47893.0,7.159e-05]
[1633117630446,0.93624688,47894.0,47893.0,7.159e-05]
[1633117630841,0.90059257,47894.0,47893.0,7.159e-05]
[1633117631441,0.86759257,47894.0,47893.0,7.159e-05]
[1633117631840,2.3,47893.0,47883.0,0.05354711]
[1633117632103,0.344378,47892.0,47879.0,0.23869792]
[1633117632242,0.2,47892.0,47880.0,0.0005301]
[1633117632445,0.2,47892.0,47880.0,0.00024108]
[1633117632844,0.20028902,47892.0,47880.0,0.00024108]
[1633117633248,0.2,47892.0,47880.0,0.00024108]
[1633117633447,0.52202479,47888.0,47879.0,0.00024108]
[1633117633844,0.52202479,47888.0,47887.0,7.16e-05]
[1633117634046,0.66640279,47888.0,47887.0,7.16e-05]
[1633117634246,0.70140279,47888.0,47887.0,7.16e-05]
[1633117634648,0.38819379,47888.0,47887.0,7.16e-05]
[1633117635449,0.35319379,47888.0,47887.0,7.16e-05]
[1633117635848,0.38882603,47888.0,47887.0,7.16e-05]
[1633117636044,0.70204003,47888.0,47887.0,7.16e-05]
[1633117636246,0.178378,47888.0,47887.0,0.00436229]
[1633117637045,0.144378,47887.0,47878.0,0.27583226]
[1633117637245,0.034,47888.0,47877.0,0.00128973]
[1633117637447,0.00028902,47887.0,47877.0,0.00128973]
[1633117637650,0.00028902,47888.0,47877.0,0.00128973]
[1633117637847,0.00028902,47889.0,47877.0,0.00128973]
[1633117638046,0.00028902,47891.0,47881.0,0.19371749]
[1633117638251,0.034,47888.0,47886.0,0.22446563]
[1633117638450,0.034,47888.0,47887.0,2.84572282]
[1633117639050,0.034,47888.0,47887.0,0.78527168]
[1633117639647,0.034,47888.0,47887.0,1.09837868]
[1633117640049,0.034,47888.0,47887.0,2.29837868]
[1633117640254,0.031,47888.0,47887.0,1.11637868]
[1633117641251,0.06877765,47888.0,47887.0,1.11637868]
[1633117641452,0.03777765,47888.0,47887.0,1.09837868]
[1633117641651,0.000693,47899.0,47887.0,1.09837868]
[1633117641851,0.000693,47899.0,47893.0,0.20935181]
[1633117642050,0.000693,47899.0,47894.0,0.18205468]
[1633117642249,0.034693,47899.0,47896.0,0.313093]
[1633117642450,0.034693,47899.0,47897.0,0.17494993]
[1633117642649,0.034693,47899.0,47898.0,0.15479211]
[1633117642853,0.034693,47899.0,47898.0,0.17309211]
[1633117643550,0.000693,47899.0,47898.0,0.17309211]
[1633117643952,0.010693,47899.0,47898.0,0.17309211]
[1633117644352,0.045693,47899.0,47898.0,0.17309211]
[1633117645556,0.010693,47899.0,47898.0,0.0183]
[1633117646155,0.045693,47899.0,47898.0,0.0183]
[1633117647555,0.010693,47899.0,47898.0,0.0183]
[1633117647754,0.010693,47899.0,47898.0,0.331383]
[1633117648155,0.046693,47899.0,47898.0,0.331383]
[1633117649556,0.010693,47899.0,47898.0,0.331383]
[1633117649760,0.010693,47899.0,47898.0,0.0183]
[1633117650217,0.046693,47899.0,47898.0,0.0183]
[1633117651625,0.010693,47899.0,47898.0,0.0183]
[1633117651822,0.010693,47899.0,47898.0,0.331397]
[1633117652223,0.046693,47899.0,47898.0,0.331397]
[1633117654026,0.010693,47899.0,47898.0,0.331397]
[1633117654223,0.047693,47899.0,47898.0,0.331397]
[1633117655831,0.010693,47899.0,47898.0,0.331397]
[1633117656025,0.010693,47899.0,47898.0,0.313097]
[1633117656227,0.046693,47899.0,47898.0,0.313097]
[1633117657826,0.046693,47899.0,47898.0,0.298097]
[1633117658226,0.047693,47899.0,47898.0,0.298097]
[1633117658432,0.047693,47899.0,47896.0,0.12596677]
[1633117658829,9.545e-05,47897.0,47896.0,0.12596677]
[1633117659027,9.545e-05,47897.0,47896.0,0.31433591]
[1633117660229,0.03209545,47897.0,47896.0,0.00722591]
[1633117660432,0.03209545,47897.0,47896.0,0.006]
[1633117660630,0.17647345,47897.0,47896.0,0.006]
[1633117660828,0.17647345,47897.0,47896.0,0.001]
[1633117661630,0.14447345,47897.0,47894.0,0.313122]
[1633117661835,9.545e-05,47897.0,47894.0,0.313122]
[1633117662037,7.159e-05,47895.0,47894.0,0.313122]
[1633117663230,0.03787535,47895.0,47894.0,0.313122]
[1633117663430,0.03787535,47895.0,47894.0,0.59488509]
[1633117663830,7.159e-05,47895.0,47894.0,0.59488509]
[1633117664231,0.03807159,47895.0,47894.0,0.59488509]
[1633117664430,0.03807159,47895.0,47894.0,0.58988509]
[1633117665032,0.03807159,47895.0,47894.0,0.60818509]
[1633117665635,7.159e-05,47895.0,47894.0,0.60818509]
[1633117666239,0.03407159,47895.0,47894.0,0.61018509]
[1633117666836,0.03407159,47895.0,47894.0,0.61143521]
[1633117668235,0.03107159,47895.0,47894.0,0.61743521]
[1633117668843,0.06887542,47895.0,47894.0,0.61743521]
[1633117670038,0.03787542,47895.0,47894.0,0.60943521]
[1633117670237,0.06887542,47895.0,47894.0,0.61743521]
[1633117670640,0.06887542,47895.0,47894.0,0.61243521]
[1633117671041,0.010693,47899.0,47895.0,2.2]
[1633117671245,0.010693,47899.0,47898.0,2.4512671]
[1633117671451,0.010693,47899.0,47898.0,2.84625624]
[1633117671642,0.010693,47899.0,47898.0,2.84649732]
[1633117672242,0.005693,47899.0,47898.0,3.16974363]
[1633117672442,0.027693,47899.0,47898.0,3.19874363]
[1633117672646,0.027693,47899.0,47898.0,3.51179163]
[1633117672842,0.027693,47899.0,47898.0,3.88058316]
[1633117673043,0.19313673,47900.0,47899.0,2.45]
[1633117673243,0.19313673,47900.0,47899.0,3.31075044]
[1633117673442,0.19313673,47900.0,47899.0,4.64419152]
[1633117673643,0.417294,47933.0,47899.0,4.64419152]
[1633117673644,0.1209,47934.0,47914.0,0.00129488]
[1633117673843,0.479326,47935.0,47920.0,0.00120929]
[1633117674049,0.12966702,47934.0,47921.0,0.00854108]
[1633117674345,0.00032196,47922.0,47921.0,0.0083]
[1633117674545,0.22352196,47922.0,47921.0,0.0083]
[1633117674746,0.53780838,47922.0,47921.0,0.00747001]
[1633117674946,0.44398438,47922.0,47921.0,0.00747001]
[1633117675146,0.13097438,47922.0,47921.0,0.00747001]
[1633117675345,0.12969796,47922.0,47921.0,0.00747001]
[1633117676347,0.16769796,47922.0,47921.0,0.00747001]
[1633117676947,0.03832196,47922.0,47921.0,0.00747001]
[1633117677746,0.00032196,47922.0,47921.0,0.00747001]
[1633117678147,0.22352196,47922.0,47921.0,0.00747001]
[1633117678349,0.39089796,47922.0,47921.0,0.00747001]
[1633117678550,0.39118698,47922.0,47921.0,0.00747001]
[1633117678748,0.16769796,47922.0,47921.0,0.00747001]
[1633117679350,0.39089796,47922.0,47921.0,0.00747001]
[1633117679749,0.39118698,47922.0,47921.0,0.00747001]
[1633117679951,0.35318698,47922.0,47921.0,0.00747001]
[1633117680151,0.12998698,47922.0,47921.0,0.00747001]
[1633117680350,0.16569796,47922.0,47916.0,0.0183]
[1633117680549,0.03632196,47922.0,47916.0,0.0183]
[1633117680750,0.036,47922.0,47916.0,0.0183]
[1633117681752,0.00028902,47921.0,47916.0,0.0183]
[1633117681947,0.00028902,47924.0,47916.0,0.0183]
[1633117682349,0.027,47921.0,47916.0,0.0353]
[1633117683758,0.00250824,47925.0,47916.0,0.0183]
[1633117684359,0.04250824,47925.0,47916.0,0.0183]
[1633117684757,0.313013,47922.0,47916.0,0.0183]
[1633117685355,0.01899246,47921.0,47916.0,0.0183]
[1633117685554,0.01899246,47921.0,47918.0,0.27171735]
[1633117685957,0.0002862,47919.0,47916.0,0.0183]
[1633117686357,0.00026236,47917.0,47916.0,0.0183]
[1633117688358,0.02526236,47917.0,47916.0,0.0403]
[1633117689561,0.02526236,47917.0,47916.0,0.05909055]
[1633117689761,0.00026236,47917.0,47916.0,0.03709055]
[1633117690359,0.025,47917.0,47916.0,0.05909055]
[1633117690759,0.04398332,47917.0,47916.0,0.0403]
[1633117691759,0.01898332,47917.0,47916.0,0.0183]
[1633117692225,0.01898332,47917.0,47915.0,0.31710232]
[1633117692422,0.04298332,47917.0,47916.0,0.01]
[1633117692826,0.17235932,47917.0,47916.0,0.01]
[1633117693624,0.04298332,47917.0,47913.0,0.33248681]
[1633117693824,0.01898332,47917.0,47913.0,0.33248681]
[1633117694224,0.01898332,47917.0,47913.0,0.32748681]
[1633117694426,0.03698332,47917.0,47913.0,0.35048681]
[1633117695024,0.018,47917.0,47914.0,0.01879726]
[1633117695827,0.00127357,47918.0,47914.0,0.01879726]
[1633117696025,0.12966502,47917.0,47914.0,0.01879726]
[1633117696226,0.129376,47917.0,47910.0,0.17964209]
[1633117696430,0.01898154,47917.0,47911.0,0.14717182]
[1633117696626,0.01898154,47917.0,47911.0,0.1474129]
[1633117696824,0.01898154,47917.0,47912.0,0.21517908]
[1633117697025,0.01898154,47917.0,47912.0,0.214938]
[1633117697427,0.01898154,47917.0,47913.0,0.42397174]
[1633117697631,0.01898154,47917.0,47916.0,2.45244825]
[1633117697827,0.01898154,47917.0,47916.0,4.22908903]
[1633117698028,0.0004,47944.0,47929.0,0.00122022]
[1633117698229,0.0004,47944.0,47938.0,0.00127427]
[1633117698430,0.129376,47943.0,47938.0,0.25218706]
[1633117698629,0.129376,47943.0,47938.0,0.56501106]
[1633117698830,0.0004,47944.0,47939.0,0.00024108]
[1633117699028,0.129376,47943.0,47940.0,0.27584144]
[1633117699226,0.0004,47944.0,47941.0,0.19631863]
[1633117699428,0.0004,47944.0,47941.0,0.19655971]
[1633117699628,0.00029798,47942.0,47941.0,0.19631863]
[1633117700429,0.03029798,47942.0,47941.0,0.20731863]
[1633117700633,0.03029798,47942.0,47941.0,0.23548814]
[1633117701832,0.03988277,47942.0,47941.0,0.20731863]
[1633117702030,0.00988277,47942.0,47941.0,0.19631863]
[1633117702434,0.04088277,47942.0,47941.0,0.21031863]
[1633117703833,0.00988277,47942.0,47941.0,0.19631863]
[1633117704436,0.04488277,47942.0,47941.0,0.20631863]
[1633117704636,0.04488277,47942.0,47941.0,0.01]
[1633117705837,0.00988277,47942.0,47938.0,0.16981832]
[1633117706039,0.00029798,47942.0,47939.0,0.28492638]
[1633117706238,0.0004,47944.0,47941.0,0.02816951]
[1633117706438,0.129376,47943.0,47942.0,0.17043507]
[1633117706639,0.0004,47944.0,47942.0,0.17043507]
[1633117706838,0.00068902,47944.0,47942.0,0.17043507]
[1633117707038,0.0004,47944.0,47942.0,0.17043507]
[1633117707436,0.13896638,47943.0,47942.0,0.17043507]
[1633117708439,0.17796638,47943.0,47942.0,0.17043507]
[1633117709636,0.17796638,47943.0,47939.0,0.28492638]
[1633117709838,0.11606638,47943.0,47939.0,0.28492638]
[1633117710037,0.00027415,47940.0,47939.0,0.28492638]
[1633117710442,0.00027415,47940.0,47939.0,0.29792638]
[1633117711640,0.00027415,47940.0,47939.0,0.33090002]
[1633117711839,0.00027415,47940.0,47939.0,0.46363251]
[1633117712442,0.03427415,47940.0,47939.0,0.49563251]
[1633117712841,0.03905652,47940.0,47939.0,0.46265887]
[1633117713242,0.03905652,47940.0,47939.0,0.31692638]
[1633117713642,0.03595042,47940.0,47939.0,0.45660167]
[1633117713844,0.00478237,47940.0,47939.0,0.43460167]
[1633117714447,0.03578237,47940.0,47939.0,0.31692638]
[1633117714845,0.03578237,47940.0,47939.0,0.27171398]
[1633117715649,0.00478237,47940.0,47939.0,0.24971398]
[1633117716250,0.00018237,47944.0,47939.0,0.24971398]
[1633117716446,0.00018237,47944.0,47939.0,0.031]
[1633117716447,0.982,47940.0,47939.0,0.031]
[1633117716646,1.098076,47940.0,47939.0,0.031]
[1633117716851,0.14936527,47940.0,47939.0,0.031]
[1633117717050,0.14936527,47940.0,47939.0,0.21610836]
[1633117717250,0.032,47940.0,47939.0,0.21610836]
[1633117717652,0.02896316,47940.0,47939.0,0.21610836]
[1633117717849,0.00018237,47944.0,47939.0,0.19510836]
[1633117718256,0.00018237,47944.0,47939.0,0.15974353]
[1633117718453,0.00353077,47943.0,47939.0,0.16874353]
[1633117718852,0.31670279,47943.0,47939.0,0.16874353]
[1633117719053,0.31641377,47943.0,47939.0,0.16874353]
[1633117720256,0.11636502,47942.0,47939.0,0.16874353]
[1633117720453,0.116076,47942.0,47939.0,0.15974353]
[1633117721054,0.04053077,47943.0,47939.0,0.15974353]
[1633117721854,0.04081979,47943.0,47939.0,0.15974353]
[1633117722116,0.00124142,47942.0,47939.0,0.15974353]
[1633117722257,0.00353077,47943.0,47939.0,0.15974353]
[1633117722462,0.036,47943.0,47939.0,0.15974353]
[1633117722662,0.036,47943.0,47940.0,0.03536036]
[1633117723861,0.00353081,47942.0,47939.0,0.15974353]
[1633117724461,0.03953081,47942.0,47939.0,0.16174353]
[1633117726461,0.07353081,47942.0,47939.0,0.17574353]
[1633117726860,0.03753081,47942.0,47939.0,0.17374353]
[1633117727062,0.0047459,47942.0,47939.0,0.15974353]
[1633117727261,0.00122833,47945.0,47939.0,0.15974353]
[1633117727462,0.116076,47944.0,47939.0,0.15974353]
[1633117727660,0.116076,47944.0,47939.0,0.01]
[1633117728060,0.116076,47944.0,47940.0,0.03711906]
[1633117728666,0.155076,47944.0,47940.0,0.03711906]
[1633117729265,0.155076,47944.0,47939.0,0.012]
[1633117729661,0.039,47944.0,47939.0,0.012]
[1633117729862,0.00122833,47945.0,47939.0,0.01]
[1633117730663,0.03622833,47945.0,47939.0,0.017]
[1633117731865,0.03622833,47945.0,47939.0,0.01]
[1633117732064,0.00122833,47945.0,47939.0,0.01]
[1633117732670,0.03822833,47945.0,47939.0,0.015]
[1633117733063,0.03822833,47945.0,47939.0,0.01]
[1633117733665,0.03822833,47945.0,47940.0,0.03711906]
[1633117734061,0.00122833,47945.0,47940.0,0.03711906]
[1633117734263,0.116076,47944.0,47940.0,0.03711906]
[1633117734666,0.00122833,47945.0,47940.0,0.03711906]
[1633117734667,0.03922833,47945.0,47940.0,0.03711906]
[1633117734864,0.03922833,47945.0,47939.0,0.317831]
[1633117735266,0.038,47945.0,47939.0,0.317831]
[1633117735864,0.00028902,47948.0,47939.0,0.317831]
[1633117736066,0.116076,47947.0,47939.0,0.317831]
[1633117736471,0.116076,47947.0,47939.0,0.312831]
[1633117736666,0.146076,47947.0,47939.0,0.312831]
[1633117737127,0.146076,47947.0,47938.0,0.59882926]
[1633117737467,0.146076,47947.0,47938.0,0.36176285]
[1633117737867,0.00028902,47946.0,47938.0,0.67460185]
[1633117738267,0.00028902,47946.0,47940.0,0.0002]
[1633117738467,0.1073591,47945.0,47940.0,0.0002]
[1633117738868,0.00028902,47944.0,47940.0,0.0002]
[1633117739071,0.106078,47943.0,47940.0,0.03731906]
[1633117739270,0.00157012,47945.0,47940.0,0.03731906]
[1633117739469,0.106078,47944.0,47940.0,0.03731906]
[1633117740270,0.106078,47944.0,47940.0,0.0002]
[1633117740672,0.13836702,47944.0,47940.0,0.0162]
[1633117741870,0.13836702,47944.0,47940.0,0.0002]
[1633117742070,0.10636702,47944.0,47940.0,0.0002]
[1633117742670,0.13936702,47944.0,47940.0,0.0142]